bitfinex/quotes_BTCUSD_20251009
["timestamp","ask_amount","ask_price","bid_price","bid_amount"]
[1760010257622,0.0024545,122860.0,122850.0,1.80068599]
[1760010257884,0.0024545,122860.0,122850.0,2.22392599]
[1760010258300,0.0024545,122860.0,122850.0,1.56984599]
[1760010258517,0.0024545,122860.0,122850.0,2.22388599]
[1760010259279,0.0024545,122860.0,122850.0,1.56984599]
[1760010259513,0.0024545,122860.0,122850.0,2.11601899]
[1760010260094,0.0024545,122860.0,122850.0,1.46197899]
[1760010260415,0.0024545,122860.0,122850.0,2.11601899]
[1760010260615,0.0024545,122860.0,122850.0,1.46197899]
[1760010260821,0.0024545,122860.0,122850.0,2.11597899]
[1760010261444,0.0024545,122860.0,122850.0,2.32631599]
[1760010262766,0.0024545,122860.0,122850.0,1.51450236]
[1760010262987,0.0024545,122860.0,122850.0,2.27014599]
[1760010263200,0.0024545,122860.0,122850.0,2.11597899]
[1760010263642,0.0024545,122860.0,122850.0,2.22248599]
[1760010263854,0.0024545,122860.0,122850.0,2.11597899]
[1760010264064,0.0024545,122860.0,122850.0,2.22248599]
[1760010264291,0.0024545,122860.0,122850.0,2.11597899]
[1760010264478,0.0024545,122860.0,122850.0,1.46197899]
[1760010264742,0.0024545,122860.0,122850.0,1.86405778]
[1760010265166,0.0024545,122860.0,122850.0,1.52405778]
[1760010265651,0.0024545,122860.0,122850.0,2.06776478]
[1760010266055,0.0024545,122860.0,122850.0,2.31964599]
[1760010266676,0.0024545,122860.0,122850.0,2.23046199]
[1760010266880,0.0024545,122860.0,122850.0,2.11593899]
[1760010267305,0.0024545,122860.0,122850.0,2.22115299]
[1760010267536,0.0024545,122860.0,122850.0,2.24175299]
[1760010267658,0.0024545,122860.0,122850.0,2.11593899]
[1760010270072,0.0024545,122860.0,122850.0,2.23835599]
[1760010270394,0.0024545,122860.0,122850.0,2.99818899]
[1760010272537,0.0024545,122860.0,122850.0,2.89101499]
[1760010273532,0.0024545,122860.0,122850.0,2.81377699]
[1760010273754,0.0024545,122860.0,122850.0,2.62504699]
[1760010274394,0.0024545,122860.0,122850.0,2.41043699]
[1760010274637,0.0024545,122860.0,122850.0,1.21009778]
[1760010274855,0.0024545,122860.0,122850.0,1.86401778]
[1760010278192,0.0024545,122860.0,122850.0,1.69596628]
[1760010287009,0.0024545,122860.0,122850.0,1.36025536]
[1760010287274,0.0024545,122860.0,122850.0,1.69596628]
[1760010287706,0.0024545,122860.0,122850.0,1.04204628]
[1760010287891,0.0198545,122860.0,122850.0,1.69580628]
[1760010288309,0.0024545,122860.0,122850.0,1.69580628]
[1760010289109,0.0024545,122860.0,122850.0,1.04204628]
[1760010289350,0.0024545,122860.0,122850.0,1.69580628]
[1760010291312,0.0024545,122860.0,122850.0,1.72595818]
[1760010292065,0.0024545,122860.0,122850.0,1.07219818]
[1760010292273,0.0024545,122860.0,122850.0,1.72587818]
[1760010301957,0.0194745,122860.0,122850.0,0.70858726]
[1760010302181,0.0605445,122860.0,122850.0,1.03742504]
[1760010302399,0.0605445,122860.0,122850.0,1.26774504]
[1760010302651,0.0605445,122860.0,122850.0,1.28564504]
[1760010303085,0.0328045,122860.0,122850.0,1.28564504]
[1760010303774,0.22333141,122860.0,122850.0,1.26774504]
[1760010304017,0.0605445,122860.0,122850.0,1.26774504]
[1760010304236,0.22333141,122860.0,122850.0,1.26774504]
[1760010304680,0.0605445,122860.0,122850.0,1.26774504]
[1760010304885,0.22333141,122860.0,122850.0,1.26774504]
[1760010305506,0.22333141,122860.0,122850.0,0.93203412]
[1760010305926,0.22333141,122860.0,122850.0,1.26774504]
[1760010306131,0.0605445,122860.0,122850.0,1.26774504]
[1760010306597,0.22333141,122860.0,122850.0,0.70171412]
[1760010306807,0.22333141,122860.0,122850.0,1.26774504]
[1760010309544,0.22333141,122860.0,122850.0,1.26770504]
[1760010311983,0.22333141,122860.0,122850.0,1.28560504]
[1760010312818,0.22333141,122860.0,122850.0,1.26770504]
[1760010319772,0.22333141,122860.0,122850.0,0.93199412]
[1760010319941,0.22333141,122860.0,122850.0,1.26770504]
[1760010321176,0.19559141,122860.0,122850.0,1.32540504]
[1760010321596,0.22333141,122860.0,122850.0,1.26770504]
[1760010321800,0.2633042,122860.0,122850.0,0.11427396]
[1760010322010,0.2633042,122860.0,122850.0,0.65163092]
[1760010322011,0.22333141,122860.0,122850.0,0.65163092]
[1760010323213,0.22333141,122860.0,122850.0,0.65063092]
[1760010324325,0.22333141,122860.0,122850.0,0.33571092]
[1760010324652,0.22333141,122860.0,122850.0,0.56599092]
[1760010330061,0.22333141,122860.0,122850.0,0.23028]
[1760010330346,0.22333141,122860.0,122850.0,0.56599092]
[1760010332839,0.22333141,122860.0,122850.0,0.23028]
[1760010333056,0.22333141,122860.0,122850.0,0.56599092]
[1760010336984,0.22333141,122860.0,122850.0,0.23028]
[1760010337189,0.22333141,122860.0,122850.0,0.56599092]
[1760010337613,0.22333141,122860.0,122850.0,0.72879108]
[1760010338045,0.22333141,122860.0,122850.0,0.56599092]
[1760010340167,0.22333141,122860.0,122850.0,0.73395974]
[1760010340804,0.22333141,122860.0,122850.0,0.8967599]
[1760010342366,0.0024545,122860.0,122850.0,1.06529386]
[1760010342570,0.16524141,122860.0,122850.0,1.06529386]
[1760010342741,0.0195045,122860.0,122850.0,1.06529386]
[1760010342921,0.18229141,122860.0,122850.0,1.03994386]
[1760010343121,0.22160141,122860.0,122850.0,1.01003386]
[1760010343531,0.22160141,122860.0,122850.0,1.02644386]
[1760010343710,0.22160141,122860.0,122850.0,1.01003386]
[1760010349349,0.22160141,122860.0,122850.0,0.50635412]
[1760010349470,0.22160141,122860.0,122850.0,1.01003386]
[1760010350062,0.22160141,122860.0,122850.0,0.6169537]
[1760010350202,0.22160141,122860.0,122850.0,0.8472337]
[1760010350547,0.22160141,122860.0,122850.0,0.27607412]
[1760010350759,0.21934141,122860.0,122850.0,1.09467386]
[1760010351381,0.21934141,122860.0,122850.0,0.77975386]
[1760010351694,0.21934141,122860.0,122850.0,1.09467386]
[1760010354697,0.21934141,122860.0,122850.0,0.77975386]
[1760010354826,0.21934141,122860.0,122850.0,1.01003386]
[1760010355031,0.21934141,122860.0,122850.0,1.09467386]
[1760010355234,0.21934141,122860.0,122850.0,0.6169537]
[1760010355445,0.21934141,122860.0,122850.0,0.9318737]
[1760010355859,0.21934141,122860.0,122850.0,1.09467386]
[1760010356059,0.21934141,122860.0,122850.0,0.59099412]
[1760010356270,0.21934141,122860.0,122850.0,1.09467386]
[1760010356865,0.21934141,122860.0,122850.0,0.77975386]
[1760010356986,0.21934141,122860.0,122850.0,1.09467386]
[1760010360873,0.21934141,122860.0,122850.0,0.77975386]
[1760010361085,0.21934141,122860.0,122850.0,1.09467386]
[1760010363348,0.21934141,122860.0,122850.0,0.77975386]
[1760010363558,0.21934141,122860.0,122850.0,0.9318737]
[1760010363991,0.21934141,122860.0,122850.0,0.56671987]
[1760010364367,0.21934141,122860.0,122850.0,0.25183987]
[1760010364806,0.21934141,122860.0,122850.0,0.48207987]
[1760010365702,0.21934141,122860.0,122850.0,0.8967199]
[1760010369952,0.0319345,122860.0,122850.0,0.9142899]
[1760010370150,0.19472141,122860.0,122850.0,0.9527899]
[1760010370625,0.0319345,122860.0,122850.0,0.9273899]
[1760010370845,0.0024545,122860.0,122850.0,1.31790373]
[1760010371056,0.0024545,122860.0,122850.0,1.65790373]
[1760010373538,0.0024545,122860.0,122850.0,1.71983335]
[1760010376722,0.0024545,122860.0,122850.0,1.48959335]
[1760010376930,0.0024545,122860.0,122850.0,2.14307335]
[1760010377151,0.0024545,122860.0,122850.0,1.48959335]
[1760010377361,0.0024545,122860.0,122850.0,1.89123348]
[1760010378991,0.0024545,122860.0,122850.0,1.38755374]
[1760010379191,0.0024545,122860.0,122850.0,1.89123348]
[1760010380177,0.0024545,122860.0,122850.0,1.23775348]
[1760010380347,0.0024545,122860.0,122850.0,1.89123348]
[1760010380965,0.0024545,122860.0,122850.0,1.23775348]
[1760010381188,0.0024545,122860.0,122850.0,1.89123348]
[1760010383180,0.0024545,122860.0,122850.0,2.14307335]
[1760010385453,0.0024545,122860.0,122850.0,1.89123348]
[1760010387393,0.0024545,122860.0,122850.0,1.38755374]
[1760010387604,0.0024545,122860.0,122850.0,2.14307335]
[1760010392470,0.0024545,122860.0,122850.0,1.63939361]
[1760010392675,0.0024545,122860.0,122850.0,1.89123348]
[1760010393922,0.0024545,122860.0,122850.0,1.89119348]
[1760010394911,0.18203141,122860.0,122850.0,1.04955332]
[1760010395120,0.21865141,122860.0,122850.0,0.33647987]
[1760010395325,0.21865141,122860.0,122850.0,0.56667987]
[1760010395728,0.21865141,122860.0,122850.0,0.81851974]
[1760010397124,0.21865141,122860.0,122850.0,0.50367974]
[1760010397481,0.21865141,122860.0,122850.0,0.81851974]
[1760010402146,0.21865141,122860.0,122850.0,0.65062243]
[1760010405240,0.21865141,122860.0,122850.0,0.31484]
[1760010405467,0.21865141,122860.0,122850.0,0.65062243]
[1760010407043,0.21865141,122860.0,122850.0,0.33578243]
[1760010407248,0.21865141,122860.0,122850.0,0.56598243]
[1760010407899,0.21865141,122860.0,122850.0,0.2302]
[1760010408116,0.21865141,122860.0,122850.0,0.56598243]
[1760010409255,0.21865141,122860.0,122850.0,0.2302]
[1760010409468,0.21865141,122860.0,122850.0,0.56598243]
[1760010409648,0.21865141,122860.0,122850.0,0.2302]
[1760010409785,0.21865141,122860.0,122850.0,0.56598243]
[1760010413993,0.21865141,122860.0,122850.0,0.72878259]
[1760010414234,0.21865141,122860.0,122850.0,0.56598243]
[1760010414648,0.21865141,122860.0,122850.0,0.72878259]
[1760010416165,0.0558645,122860.0,122850.0,0.72878259]
[1760010416396,0.21865141,122860.0,122850.0,0.72878259]
[1760010423528,0.21865141,122860.0,122850.0,0.56598243]
[1760010423734,0.21865141,122860.0,122850.0,0.2302]
[1760010423934,0.21865141,122860.0,122850.0,0.72878259]
[1760010425178,0.21865141,122860.0,122850.0,0.56598243]
[1760010426198,0.21865141,122860.0,122850.0,0.72878259]
[1760010431343,0.19400141,122860.0,122850.0,0.74585259]
[1760010431496,0.21887141,122860.0,122850.0,0.74585259]
[1760010432180,0.21887141,122860.0,122850.0,0.72878259]
[1760010433737,0.21887141,122860.0,122850.0,0.56598243]
[1760010433888,0.21887141,122860.0,122840.0,0.50281291]
[1760010434101,0.16280016,122850.0,122830.0,0.0144232]
[1760010434328,0.17538016,122850.0,122840.0,0.3148]
[1760010434534,0.19242016,122850.0,122840.0,0.3148]
[1760010434690,0.16281341,122840.0,122830.0,0.58308324]
[1760010434894,0.19243341,122840.0,122830.0,0.95323514]
[1760010435169,0.21730341,122840.0,122830.0,0.0013532]
[1760010435320,0.21730341,122840.0,122830.0,0.65293563]
[1760010435518,0.21730341,122840.0,122830.0,0.65193563]
[1760010435897,0.21730341,122840.0,122830.0,0.3171532]
[1760010436180,0.21730341,122840.0,122830.0,0.65193563]
[1760010436690,0.21730341,122840.0,122830.0,0.33713563]
[1760010436900,0.21730341,122840.0,122830.0,0.56729563]
[1760010437214,0.21730341,122840.0,122830.0,0.56829563]
[1760010437428,0.21730341,122840.0,122830.0,0.2325132]
[1760010437639,0.25657177,122840.0,122830.0,0.2325132]
[1760010437852,0.25657177,122840.0,122830.0,0.0023532]
[1760010438055,0.25657177,122840.0,122830.0,0.2325132]
[1760010438262,0.25657177,122840.0,122830.0,0.0023532]
[1760010438468,0.67547626,122840.0,122830.0,0.0023532]
[1760010438678,0.33969383,122840.0,122830.0,0.0023532]
[1760010438888,0.36414369,122840.0,122830.0,0.0023532]
[1760010439295,0.36614369,122840.0,122830.0,0.0023532]
[1760010439510,0.36614369,122840.0,122830.0,0.0013532]
[1760010439724,0.72692611,122840.0,122830.0,0.0013532]
[1760010439937,0.16282667,122830.0,122820.0,5.031e-05]
[1760010440168,0.90446796,122830.0,122820.0,5.031e-05]
[1760010440374,0.97137795,122830.0,122820.0,5.031e-05]
[1760010440583,1.31137795,122830.0,122820.0,5.031e-05]
[1760010440790,1.18121794,122830.0,122820.0,5.031e-05]
[1760010440994,1.31137795,122830.0,122820.0,5.031e-05]
[1760010441400,1.42657788,122830.0,122820.0,5.031e-05]
[1760010442462,0.96579547,122830.0,122820.0,5.031e-05]
[1760010442671,0.54583867,122830.0,122820.0,5.031e-05]
[1760010442877,0.31563867,122830.0,122820.0,5.031e-05]
[1760010443087,0.21731667,122830.0,122820.0,0.33583274]
[1760010443506,0.21831667,122830.0,122820.0,0.33583274]
[1760010443941,0.05449,122830.0,122820.0,0.72887266]
[1760010444149,0.02962,122830.0,122820.0,0.84051472]
[1760010444391,0.19879341,122840.0,122830.0,0.16282667]
[1760010444591,0.24804371,122840.0,122830.0,0.4986091]
[1760010444802,0.21583341,122840.0,122830.0,0.4986091]
[1760010445255,0.21583341,122840.0,122830.0,0.33578243]
[1760010447053,0.21683341,122840.0,122830.0,0.33578243]
[1760010447701,0.21683341,122840.0,122830.0,0.56598243]
[1760010447902,0.21683341,122840.0,122830.0,0.33578243]
[1760010448104,0.25700408,122840.0,122830.0,0.56598243]
[1760010449136,0.25900408,122840.0,122830.0,0.56598243]
[1760010451924,0.25900408,122840.0,122830.0,0.2302]
[1760010452126,0.25900408,122840.0,122830.0,0.56598243]
[1760010453641,0.25900408,122840.0,122830.0,0.2302]
[1760010453846,0.25900408,122840.0,122830.0,0.56598243]
[1760010456408,0.25900408,122840.0,122830.0,0.33578243]
[1760010456623,0.16282667,122830.0,122820.0,0.33633839]
[1760010456831,0.23325975,122830.0,122820.0,0.56653839]
[1760010457041,0.25643975,122830.0,122820.0,0.56653839]
[1760010457876,0.25643975,122830.0,122820.0,0.23075596]
[1760010458095,0.25743975,122830.0,122820.0,0.23075596]
[1760010458299,0.67634424,122830.0,122820.0,0.00055596]
[1760010458512,0.34056181,122830.0,122820.0,0.00055596]
[1760010459221,0.34156181,122830.0,122820.0,0.00055596]
[1760010459457,0.35675938,122830.0,122820.0,0.00055596]
[1760010459887,0.35575938,122830.0,122820.0,0.00055596]
[1760010460092,0.35775938,122830.0,122820.0,0.00055596]
[1760010460316,0.35675938,122830.0,122820.0,0.00055596]
[1760010460728,0.69454181,122830.0,122820.0,0.00055596]
[1760010461069,1.03454181,122830.0,122820.0,0.00055596]
[1760010461270,1.14214113,122830.0,122820.0,0.00055596]
[1760010461888,1.16714112,122830.0,122820.0,1e-08]
[1760010462093,1.06714113,122830.0,122820.0,1e-08]
[1760010462299,1.39750141,122830.0,122820.0,1e-08]
[1760010462546,1.16714141,122830.0,122820.0,1e-08]
[1760010462692,1.39750141,122830.0,122820.0,1e-08]
[1760010462908,1.16714141,122830.0,122820.0,1e-08]
[1760010463111,1.06167898,122830.0,122820.0,1e-08]
[1760010464250,0.80635899,122830.0,122820.0,1e-08]
[1760010464461,1.03667899,122830.0,122820.0,1e-08]
[1760010464874,1.28878735,122830.0,122820.0,1e-08]
[1760010465082,1.03667899,122830.0,122820.0,1e-08]
[1760010465834,0.80635899,122830.0,122820.0,1e-08]
[1760010466048,1.28878735,122830.0,122820.0,1e-08]
[1760010466466,1.33878735,122830.0,122820.0,1e-08]
[1760010467093,1.23878736,122830.0,122820.0,1e-08]
[1760010467278,1.33878735,122830.0,122820.0,1e-08]
[1760010467843,1.3632404,122830.0,122820.0,1e-08]
[1760010468202,1.26324041,122830.0,122820.0,1e-08]
[1760010468330,1.3632404,122830.0,122820.0,1e-08]
[1760010468788,1.26324041,122830.0,122820.0,1e-08]
[1760010469238,1.3632404,122830.0,122820.0,1e-08]
[1760010470731,1.36323984,122830.0,122820.0,1e-08]
[1760010471347,1.11113148,122830.0,122820.0,1e-08]
[1760010471485,1.36323984,122830.0,122820.0,1e-08]
[1760010473052,1.26323985,122830.0,122820.0,1e-08]
[1760010473262,1.44787984,122830.0,122820.0,1e-08]
[1760010473495,1.34787985,122830.0,122820.0,1e-08]
[1760010473699,1.44787984,122830.0,122820.0,1e-08]
[1760010474909,1.34787985,122830.0,122820.0,1e-08]
[1760010478985,1.03291985,122830.0,122820.0,1e-08]
[1760010479187,0.78081149,122830.0,122820.0,1e-08]
[1760010479398,1.34787985,122830.0,122820.0,1e-08]
[1760010479922,1.34028079,122830.0,122820.0,1e-08]
[1760010480040,1.34788316,122830.0,122820.0,1e-08]
[1760010480242,0.00814265,122810.0,122780.0,0.08468]
[1760010480473,0.00814265,122810.0,122780.0,0.45011267]
[1760010480474,0.19072971,122790.0,122780.0,0.45011267]
[1760010480679,0.21416971,122790.0,122780.0,0.45011267]
[1760010480890,0.21416971,122790.0,122780.0,0.452136]
[1760010481099,0.21416971,122790.0,122780.0,0.00207368]
[1760010481719,0.21416971,122790.0,122780.0,0.5062904]
[1760010481949,0.21416971,122790.0,122780.0,0.5072904]
[1760010482587,0.21416971,122790.0,122780.0,0.25518204]
[1760010483433,0.21416971,122790.0,122780.0,0.00207368]
[1760010483652,0.27611552,122790.0,122780.0,0.25418204]
[1760010484300,0.27611552,122790.0,122780.0,0.00207368]
[1760010484544,0.27611552,122790.0,122780.0,0.5062904]
[1760010484750,0.27611552,122790.0,122780.0,0.5072904]
[1760010485091,0.21416971,122790.0,122780.0,0.5072904]
[1760010485635,0.21416971,122790.0,122780.0,0.5062904]
[1760010486880,0.21416971,122790.0,122780.0,0.00207368]
[1760010487086,0.21416971,122790.0,122780.0,0.5062904]
[1760010489282,0.21416971,122790.0,122780.0,0.00207368]
[1760010489470,0.2923759,122790.0,122780.0,0.5062904]
[1760010489611,0.2933759,122790.0,122780.0,0.5062904]
[1760010490328,0.27811552,122790.0,122780.0,0.00207368]
[1760010490558,0.2933775,122790.0,122780.0,0.00207368]
[1760010492238,0.2933775,122790.0,122780.0,0.25418204]
[1760010492456,0.46175169,122790.0,122780.0,0.25418204]
[1760010492671,0.46175169,122790.0,122780.0,0.5062904]
[1760010494357,0.21616971,122790.0,122780.0,0.5062904]
[1760010494955,0.21616971,122790.0,122780.0,0.7366104]
[1760010495995,0.21616971,122790.0,122780.0,0.5062904]
[1760010496241,0.25206043,122790.0,122780.0,0.23239368]
[1760010496461,0.25206043,122790.0,122780.0,0.25418204]
[1760010497785,0.25206043,122790.0,122780.0,0.00207368]
[1760010498008,0.25206043,122790.0,122780.0,0.25418204]
[1760010498577,0.25206043,122790.0,122780.0,0.00207368]
[1760010498773,0.25206043,122790.0,122780.0,0.25418204]
[1760010500635,0.48234043,122790.0,122780.0,0.25418204]
[1760010501757,0.44644971,122790.0,122780.0,0.25418204]
[1760010502003,0.21616971,122790.0,122780.0,0.25418204]
[1760010502202,0.44644971,122790.0,122780.0,0.25418204]
[1760010502418,0.23141513,122790.0,122780.0,0.25418204]
[1760010502635,0.46169513,122790.0,122780.0,0.25418204]
[1760010502841,0.52536548,122790.0,122780.0,0.25418204]
[1760010503479,0.52536548,122790.0,122780.0,0.00207368]
[1760010503685,0.52536548,122790.0,122780.0,0.25418204]
[1760010503965,0.29508548,122790.0,122780.0,0.25418204]
[1760010504176,0.52536548,122790.0,122780.0,0.00207368]
[1760010504548,0.52536548,122790.0,122780.0,0.25418204]
[1760010504765,0.29508548,122790.0,122780.0,0.25418204]
[1760010504990,0.23141513,122790.0,122780.0,0.5062904]
[1760010505191,0.21616971,122790.0,122780.0,0.5062904]
[1760010505588,0.21616971,122790.0,122780.0,0.00207368]
[1760010505796,0.21616971,122790.0,122780.0,0.5062904]
[1760010506002,0.21616971,122790.0,122780.0,0.7365704]
[1760010506200,0.25528752,122790.0,122780.0,0.7365704]
[1760010508081,0.25528752,122790.0,122780.0,0.7517804]
[1760010508298,0.19272971,122790.0,122780.0,0.7517804]
[1760010508554,0.02985,122790.0,122780.0,0.91467337]
[1760010508782,0.16487971,122790.0,122780.0,0.95016337]
[1760010508974,0.18135971,122790.0,122780.0,0.92691337]
[1760010509181,0.21718971,122790.0,122780.0,0.92691337]
[1760010512565,0.21718971,122790.0,122780.0,0.5062904]
[1760010512766,0.21718971,122790.0,122780.0,0.7365704]
[1760010512990,0.25640952,122790.0,122780.0,0.89946337]
[1760010513931,0.25640952,122790.0,122780.0,0.66918337]
[1760010514130,0.25640952,122790.0,122780.0,0.89946337]
[1760010514563,0.25640952,122790.0,122780.0,0.00207368]
[1760010514764,0.25640952,122790.0,122780.0,0.7365704]
[1760010516171,0.25640952,122790.0,122780.0,0.5062904]
[1760010516394,0.25640952,122790.0,122780.0,0.7365704]
[1760010516730,0.25640952,122790.0,122780.0,0.5062904]
[1760010516986,0.25640952,122790.0,122780.0,0.89946337]
[1760010517636,0.25640952,122790.0,122780.0,0.7365704]
[1760010517844,0.25640952,122790.0,122780.0,0.89946337]
[1760010520346,0.25640952,122790.0,122780.0,0.7365704]
[1760010520577,0.25640952,122790.0,122780.0,0.89946337]
[1760010522268,0.09352981,122790.0,122780.0,0.91467337]
[1760010522892,0.25640952,122790.0,122780.0,0.91467337]
[1760010523321,0.25640952,122790.0,122780.0,0.89946337]
[1760010523945,0.25640952,122790.0,122780.0,0.91467337]
[1760010524564,0.21718971,122790.0,122780.0,0.91467337]
[1760010525079,0.21718971,122790.0,122780.0,0.89946337]
[1760010526278,0.21718971,122790.0,122780.0,0.73143823]
[1760010526894,0.21718971,122790.0,122780.0,1.63390507]
[1760010526895,0.002,122790.0,122780.0,1.63390507]
[1760010527065,0.002,122790.0,122780.0,1.29771349]
[1760010527907,0.20542642,122810.0,122790.0,0.53301983]
[1760010528101,0.20542642,122810.0,122800.0,0.56647158]
[1760010528313,0.22093642,122810.0,122800.0,1.0665411]
[1760010528518,0.22093642,122810.0,122800.0,0.56748308]
[1760010529489,0.22193642,122810.0,122800.0,0.56748308]
[1760010529810,0.22193642,122810.0,122800.0,0.39415794]
[1760010530009,0.22193642,122810.0,122800.0,0.73034952]
[1760010530919,0.01259,122810.0,122800.0,1.21990506]
[1760010531085,0.001,122810.0,122800.0,1.65596506]
[1760010531525,0.001,122810.0,122800.0,0.9835819]
[1760010531750,0.16385318,122810.0,122800.0,1.34100506]
[1760010531895,0.001,122810.0,122800.0,1.65596506]
[1760010532109,0.01651,122810.0,122800.0,1.65596506]
[1760010532314,0.17936318,122810.0,122800.0,1.65596506]
[1760010532577,0.18036318,122810.0,122800.0,1.31977348]
[1760010532764,0.01751,122810.0,122800.0,1.31977348]
[1760010533076,0.002,122810.0,122800.0,1.31977348]
[1760010533488,0.002,122810.0,122800.0,1.65596506]
[1760010539115,0.01713,122810.0,122800.0,1.34100506]
[1760010539329,0.01713,122810.0,122800.0,1.65486506]
[1760010539554,0.002,122810.0,122800.0,1.65486506]
[1760010540339,0.002,122810.0,122800.0,1.31867348]
[1760010540735,0.002,122810.0,122800.0,0.9824819]
[1760010540885,0.002,122810.0,122800.0,1.65486506]
[1760010542822,0.001,122810.0,122800.0,1.65486506]
[1760010543589,0.001,122810.0,122800.0,0.6675619]
[1760010543807,0.01513,122810.0,122800.0,1.65486506]
[1760010544009,0.01513,122810.0,122800.0,1.31867348]
[1760010544211,0.01613,122810.0,122800.0,1.31867348]
[1760010545046,0.01513,122810.0,122800.0,1.31867348]
[1760010546099,0.20281379,122820.0,122810.0,0.16285318]
[1760010546394,0.21794379,122820.0,122810.0,0.72928476]
[1760010546850,0.21975379,122820.0,122810.0,0.72928476]
[1760010548693,0.21975379,122820.0,122810.0,0.39309318]
[1760010548915,0.22075379,122820.0,122810.0,0.72928476]
[1760010549128,0.22075379,122820.0,122810.0,0.39309318]
[1760010549367,0.22075379,122820.0,122810.0,0.72928476]
[1760010550083,0.19610379,122820.0,122810.0,0.74556476]
[1760010550294,0.19609991,122820.0,122810.0,0.74556476]
[1760010550546,0.00599999,122820.0,122810.0,0.80991666]
[1760010550774,0.00699999,122820.0,122810.0,1.23303872]
[1760010551462,0.00599999,122820.0,122810.0,1.23303872]
[1760010551686,0.00599999,122820.0,122810.0,1.23354443]
[1760010553866,0.00499999,122820.0,122810.0,1.23354443]
[1760010554085,0.00499999,122820.0,122810.0,1.23454443]
[1760010554327,0.00499999,122820.0,122810.0,1.23554443]
[1760010555981,0.00499999,122820.0,122810.0,1.00530443]
[1760010556609,0.00499999,122820.0,122810.0,1.65894443]
[1760010557206,0.00499999,122820.0,122810.0,1.23550443]
[1760010557364,0.00499999,122820.0,122810.0,1.65890443]
[1760010559424,0.00499999,122820.0,122810.0,1.00530443]
[1760010559638,0.00499999,122820.0,122810.0,1.65886443]
[1760010559838,0.00499999,122820.0,122810.0,1.00530443]
[1760010560047,0.00499999,122820.0,122810.0,1.65886443]
[1760010560917,0.00499999,122820.0,122810.0,1.57418443]
[1760010561107,0.00499999,122820.0,122810.0,1.65886443]
[1760010562794,0.00499999,122820.0,122810.0,1.32267285]
[1760010563036,0.00499999,122820.0,122810.0,1.65886443]
[1760010565003,0.00499999,122820.0,122810.0,1.00530443]
[1760010565220,0.00499999,122820.0,122810.0,1.65886443]
[1760010565706,0.00499999,122820.0,122810.0,1.57418443]
[1760010565934,0.00499999,122820.0,122810.0,1.65886443]
[1760010566159,0.00499999,122820.0,122810.0,1.23546443]
[1760010566386,0.00499999,122820.0,122810.0,1.65886443]
[1760010567042,0.00499999,122820.0,122810.0,1.00530443]
[1760010567259,0.00499999,122820.0,122810.0,1.65886443]
[1760010567707,0.16783991,122820.0,122810.0,0.89950777]
[1760010567926,0.19584991,122820.0,122810.0,1.44315935]
[1760010568131,0.22060991,122820.0,122810.0,1.47331125]
[1760010568548,0.22060991,122820.0,122810.0,1.63616443]
[1760010568931,0.19584991,122820.0,122810.0,1.63616443]
[1760010569132,0.22060991,122820.0,122810.0,0.79197125]
[1760010569359,0.22060991,122820.0,122810.0,1.10681125]
[1760010569562,0.22060991,122820.0,122810.0,1.26966443]
[1760010569702,0.22060991,122820.0,122810.0,1.10681125]
[1760010570272,0.22060991,122820.0,122810.0,1.28524443]
[1760010570476,0.22060991,122820.0,122810.0,0.97040443]
[1760010570688,0.22060991,122820.0,122810.0,1.28524443]
[1760010570890,0.22060991,122820.0,122810.0,0.97040443]
[1760010571103,0.22060991,122820.0,122810.0,1.12239125]
[1760010571311,0.22060991,122820.0,122810.0,1.28524443]
[1760010571519,0.22060991,122820.0,122810.0,0.97040443]
[1760010571771,0.22060991,122820.0,122810.0,0.96050285]
[1760010571772,0.19584991,122820.0,122810.0,0.96050285]
[1760010571980,0.22060991,122820.0,122810.0,1.29669443]
[1760010573627,0.19584991,122820.0,122810.0,0.96050285]
[1760010573937,0.19584991,122820.0,122810.0,1.29669443]
[1760010575188,0.19584991,122820.0,122810.0,1.32018443]
[1760010578315,0.00499999,122820.0,122810.0,1.32018443]
[1760010580537,0.00499999,122820.0,122810.0,1.65890443]
[1760010583277,0.16783991,122820.0,122810.0,1.65890443]
[1760010583686,0.00499999,122820.0,122810.0,1.65890443]
[1760010583899,0.00499999,122820.0,122810.0,1.00534443]
[1760010584115,0.16783991,122820.0,122810.0,1.32018443]
[1760010584395,0.18408991,122820.0,122810.0,1.32018443]
[1760010584637,0.18408991,122820.0,122810.0,0.98399285]
[1760010584854,0.16783991,122820.0,122810.0,1.32018443]
[1760010585069,0.21890991,122820.0,122810.0,0.45577967]
[1760010585280,0.21890991,122820.0,122810.0,0.84649935]
[1760010585486,0.21890991,122820.0,122810.0,1.07665935]
[1760010586108,0.21890991,122820.0,122810.0,0.99249419]
[1760010586335,0.21890991,122820.0,122810.0,0.99149419]
[1760010586841,0.21890991,122820.0,122810.0,0.99049419]
[1760010587065,0.21990991,122820.0,122810.0,0.99049419]
[1760010587279,0.22090991,122820.0,122810.0,0.73846777]
[1760010587481,0.22090991,122820.0,122810.0,0.99049419]
[1760010587948,0.05806999,122820.0,122810.0,1.40537379]
[1760010588149,0.22090991,122820.0,122810.0,1.40537379]
[1760010589616,0.22090991,122820.0,122810.0,0.73846777]
[1760010589798,0.22090991,122820.0,122810.0,1.24252061]
[1760010590742,0.22090991,122820.0,122810.0,1.25849061]
[1760010592241,0.22090991,122820.0,122810.0,1.42134379]
[1760010593299,0.22090991,122820.0,122810.0,1.25849061]
[1760010593871,0.19702991,122820.0,122810.0,1.42134379]
[1760010595175,0.19702991,122820.0,122810.0,1.45664379]
[1760010595379,0.19702991,122820.0,122810.0,1.29379061]
[1760010595593,0.19702991,122820.0,122810.0,1.43314379]
[1760010595794,0.19702991,122820.0,122810.0,1.27029061]
[1760010596163,0.19702991,122820.0,122810.0,1.43314379]
[1760010596607,0.19702991,122820.0,122810.0,1.27029061]
[1760010598410,0.22021991,122820.0,122810.0,1.27029061]
[1760010599162,0.19702991,122820.0,122810.0,1.43314379]
[1760010599340,0.19702991,122820.0,122810.0,1.27029061]
[1760010599838,0.22021991,122820.0,122810.0,1.25432061]
[1760010600261,0.22021991,122820.0,122810.0,0.00050571]
[1760010600472,0.25970058,122820.0,122810.0,0.40821213]
[1760010601319,0.25970058,122820.0,122810.0,0.00050571]
[1760010601528,0.25970058,122820.0,122810.0,0.48273213]
[1760010602188,0.25970058,122820.0,122810.0,0.23070571]
[1760010602443,0.25970058,122820.0,122810.0,0.48273213]
[1760010602871,0.25970058,122820.0,122810.0,0.23070571]
[1760010603100,0.22021991,122820.0,122810.0,0.48273213]
[1760010603967,0.22021991,122820.0,122810.0,0.00050571]
[1760010604190,0.22021991,122820.0,122810.0,0.23078571]
[1760010604372,0.22021991,122820.0,122810.0,0.48281213]
[1760010604588,0.26501054,122820.0,122810.0,0.48281213]
[1760010606025,0.26501054,122820.0,122810.0,0.23078571]
[1760010606868,0.22021991,122820.0,122810.0,0.23078571]
[1760010626062,0.30334197,122820.0,122810.0,0.00050571]
[1760010626295,0.80739481,122820.0,122810.0,0.00050571]
[1760010626509,0.83184898,122820.0,122810.0,0.00050571]